bitfinex/quotes_ETHUSD_20240902
["timestamp","ask_amount","ask_price","bid_price","bid_amount"]
[1725253211531,1.65760133,2443.8,2443.4,2.86485]
[1725253212329,0.42848916,2443.8,2443.4,2.86485]
[1725253212735,0.97218545,2443.8,2443.3,2.3009]
[1725253212942,3.97218545,2443.8,2443.3,2.3009]
[1725253213157,6.83659545,2443.8,2443.3,2.3009]
[1725253213629,0.68365955,2443.7,2443.3,2.3009]
[1725253214054,3.42848916,2443.8,2443.3,5.24763579]
[1725253214238,0.42848916,2443.8,2443.4,2.86485]
[1725253214449,0.42848916,2443.8,2443.5,2.3748]
[1725253214644,0.42848916,2443.8,2443.5,5.23945]
[1725253215675,0.42848916,2443.8,2443.5,2.3748]
[1725253218244,6.92433136,2444.8,2444.1,2.86403]
[1725253218590,2.86384,2444.3,2443.7,2.86441]
[1725253218883,5.72723,2444.5,2443.8,5.13178]
[1725253219091,6.13559859,2444.5,2443.8,5.13178]
[1725253219446,3.27194859,2444.5,2443.8,5.13178]
[1725253220056,3.27194859,2444.5,2443.8,6.35188595]
[1725253220962,3.0,2444.4,2443.8,6.35188595]
[1725253221347,3.0,2444.4,2443.9,2.86426]
[1725253222395,3.0,2444.4,2443.9,2.8642]
[1725253222551,3.0,2444.5,2443.9,2.8642]
[1725253223497,3.0,2444.5,2443.9,2.86417]
[1725253223862,3.0,2444.5,2444.2,2.3427]
[1725253224067,3.0,2444.6,2444.2,2.3427]
[1725253225393,5.86345,2444.6,2444.2,2.3427]
[1725253225550,5.86345,2444.6,2443.9,5.23717]
[1725253225753,6.686225,2444.6,2443.9,5.23717]
[1725253226156,2.86376,2444.4,2443.9,2.373]
[1725253226361,3.0,2444.3,2443.9,2.373]
[1725253229992,5.8638,2444.3,2443.9,2.373]
[1725253231105,3.0,2444.3,2443.9,2.373]
[1725253233695,3.0,2444.3,2443.9,5.23726]
[1725253233896,2.86425,2444.0,2443.6,2.2826]
[1725253234222,3.0,2443.9,2443.6,2.2826]
[1725253237358,3.0,2443.9,2443.6,5.14715]
[1725253237509,3.0,2444.1,2443.7,2.86445]
[1725253238080,3.0,2444.1,2443.6,3.50270595]
[1725253239700,3.0,2444.1,2443.7,2.3881]
[1725253239889,3.0,2444.3,2443.9,2.3881]
[1725253240775,5.86382,2444.3,2443.9,2.3881]
[1725253243719,2.86392,2444.2,2443.9,2.3881]
[1725253243931,3.0,2444.1,2443.9,2.3881]
[1725253249628,3.0,2444.3,2443.9,2.3881]
[1725253249797,3.572751,2444.3,2443.9,2.3881]
[1725253250422,6.436621,2444.3,2443.9,2.3881]
[1725253251619,2.86392,2444.2,2443.9,2.3881]
[1725253251822,3.0,2444.1,2443.9,2.3881]
[1725253256710,3.0,2444.3,2443.9,2.3881]
[1725253256909,5.86381,2444.3,2443.9,2.3881]
[1725253257367,7.24133614,2444.3,2443.9,2.3881]
[1725253258146,8.9380775,2444.3,2443.9,2.3881]
[1725253258358,7.24133614,2444.3,2443.9,2.3881]
[1725253259150,8.9380775,2444.3,2443.9,2.3881]
[1725253259315,7.24133614,2444.3,2443.9,2.3881]
[1725253259517,3.0,2444.3,2443.9,2.3881]
[1725253259823,0.42850156,2444.2,2443.9,2.3881]
[1725253262311,4.51252751,2444.2,2443.9,2.3881]
[1725253262554,3.0,2444.1,2443.9,2.3881]
[1725253262717,2.86415,2444.0,2443.9,2.3881]
[1725253262918,5.86415,2444.0,2443.9,2.3881]
[1725253264248,3.0,2444.0,2443.9,2.3881]
[1725253264412,3.0,2444.1,2443.9,2.3881]
[1725253266019,5.8641,2444.1,2443.9,2.3881]
[1725253268218,3.0,2444.1,2443.9,2.3881]
[1725253270073,1.69674136,2444.3,2444.0,2.86414]
[1725253270231,1.69674136,2444.5,2444.1,2.352]
[1725253270569,4.56031136,2444.5,2444.1,2.352]
[1725253271327,3.0,2444.4,2444.1,2.352]
[1725253271756,4.69674136,2444.4,2444.1,2.352]
[1725253272325,0.42847508,2444.3,2444.1,2.352]
[1725253277382,0.42847508,2444.3,2444.1,2.873624]
[1725253277549,0.42847508,2444.3,2444.1,3.385644]
[1725253277897,0.42847508,2444.3,2444.2,2.3494]
[1725253278241,0.42847508,2444.3,2444.2,5.29513943]
[1725253278549,0.42847508,2444.3,2444.2,11.02297571]
[1725253278776,0.42847508,2444.3,2444.2,12.31684517]
[1725253279411,0.42847508,2444.3,2444.2,12.23502946]
[1725253279705,4.55909136,2445.6,2445.1,2.36]
[1725253279923,4.55909136,2445.6,2445.2,0.521624]
[1725253280197,4.55909136,2445.6,2445.1,2.36]
[1725253280198,0.42838542,2445.5,2445.1,2.36]
[1725253281258,3.42838542,2445.5,2445.1,2.36]
[1725253283982,6.29079542,2445.5,2445.1,2.36]
[1725253284476,1.22010595,2445.4,2445.1,2.36]
[1725253284657,6.29079542,2445.5,2445.1,2.36]
[1725253285390,6.29079542,2445.5,2445.1,2.596]
[1725253286309,2.86254,2445.4,2445.1,2.36]
[1725253286606,3.0,2445.3,2445.1,2.36]
[1725253288718,3.42838542,2445.5,2445.1,2.36]
[1725253289219,3.42838542,2445.5,2445.1,2.882308]
[1725253290799,6.29082542,2445.5,2445.1,2.882308]
[1725253295981,0.42838542,2445.5,2445.1,5.745148]
[1725253296177,0.42838542,2445.5,2445.2,2.94450205]
[1725253296482,0.42838542,2445.5,2445.4,2.3543]
[1725253297327,0.42838542,2445.5,2445.4,5.21681]
[1725253297474,0.42838542,2445.5,2445.4,5.29858146]
[1725253298309,0.42838542,2445.5,2445.4,8.16109146]
[1725253298615,0.42838542,2445.5,2445.4,9.38119741]
[1725253298817,0.42838542,2445.5,2445.4,10.01372587]
[1725253299416,0.42838542,2445.5,2445.4,12.79446441]
[1725253299576,0.42838542,2445.5,2445.4,13.34446441]
[1725253300534,2.86111,2446.6,2446.1,2.3138]
[1725253300837,2.86111,2446.6,2446.2,0.23138]
[1725253301051,0.42829561,2446.5,2446.1,2.3138]
[1725253301188,3.42829561,2446.5,2446.1,2.3138]
[1725253301938,2.86135,2446.4,2446.1,2.3138]
[1725253302233,3.0,2446.3,2446.1,2.3138]
[1725253303022,3.42829561,2446.5,2446.1,2.3138]
[1725253304209,6.28952561,2446.5,2446.1,2.3138]
[1725253304411,3.42829561,2446.5,2446.1,2.831371]
[1725253304847,3.42829561,2446.5,2446.1,2.3138]
[1725253305279,3.42829561,2446.5,2446.2,2.2812]
[1725253308055,0.42829561,2446.5,2446.2,2.2812]
[1725253308261,0.42829561,2446.5,2446.2,2.86156]
[1725253308583,0.42829561,2446.5,2446.3,2.4526]
[1725253308878,0.42829561,2446.5,2446.3,2.99219129]
[1725253311246,3.42829561,2446.5,2446.3,2.4526]
[1725253311572,3.42829561,2446.5,2446.0,2.3924]
[1725253311573,6.28961561,2446.5,2446.0,2.3924]
[1725253312439,6.28961561,2446.5,2446.0,3.204026]
[1725253312883,6.28961561,2446.5,2446.1,2.3924]
[1725253315446,2.86136,2446.4,2446.1,2.3924]
[1725253321695,2.86136,2446.4,2445.8,2.86196]
[1725253321696,2.86178,2446.1,2445.8,2.2946]
[1725253322338,0.42832001,2446.0,2445.8,2.2946]
[1725253323504,0.42832001,2446.0,2445.8,2.86203]
[1725253323791,0.42832001,2446.0,2445.9,2.3692]
[1725253328680,0.42832001,2446.0,2445.9,5.23113]
[1725253329671,0.42832001,2446.0,2445.9,2.3692]
[1725253330548,2.86218,2445.7,2445.4,7.44]
[1725253330748,2.86239,2445.6,2445.2,2.2577]
[1725253330947,3.148398,2445.7,2445.2,2.2577]
[1725253330948,2.86244,2445.5,2445.2,2.2577]
[1725253333462,5.86218,2445.7,2445.1,7.44]
[1725253333665,3.0,2445.6,2445.2,2.4465]
[1725253334906,2.86218,2445.7,2445.1,7.44]
[1725253334907,0.42832001,2446.0,2445.5,2.4326]
[1725253335243,0.42832001,2446.0,2445.5,5.37675358]
[1725253335564,0.42832001,2446.0,2445.6,2.86219]
[1725253335876,0.42832001,2446.0,2445.8,2.4326]
[1725253336060,0.42832001,2446.0,2445.5,5.29498]
[1725253336625,2.86212,2445.8,2445.5,2.4326]
[1725253336912,2.86217,2445.7,2445.4,7.44]
[1725253338806,5.72393,2445.9,2445.5,2.2897]
[1725253339023,2.86193,2445.9,2445.5,2.2897]
[1725253339868,5.72394,2445.9,2445.5,2.2897]
[1725253340200,2.86207,2445.8,2445.5,2.2897]
[1725253341790,2.86218,2445.7,2445.5,2.2897]
[1725253342003,2.86218,2445.7,2445.2,14.7759]
[1725253342200,2.86218,2445.7,2445.2,2.4059]
[1725253343088,2.86228,2445.6,2445.2,2.4059]
[1725253344215,2.86218,2445.7,2445.2,2.4059]
[1725253345393,5.72442,2445.7,2445.2,2.4059]
[1725253345986,2.86218,2445.7,2445.2,2.4059]
[1725253346613,2.86237,2445.6,2445.2,2.4059]
[1725253347789,2.86261,2445.4,2445.2,2.4059]
[1725253348516,2.86261,2445.4,2445.1,7.44]
[1725253349029,2.86265,2445.3,2445.1,7.44]
[1725253349200,2.86265,2445.3,2445.0,2.4641]
[1725253349545,2.86319,2444.9,2444.7,2.4641]
[1725253349822,5.72636,2444.9,2444.7,2.4641]
[1725253350032,2.86317,2444.9,2444.7,2.4641]
[1725253350982,2.86293,2445.1,2444.7,2.71051]
[1725253351509,5.86275,2445.2,2444.7,2.71051]
[1725253353829,3.0,2445.2,2444.7,5.57381]
[1725253353983,3.0,2445.2,2444.8,2.3259]
[1725253355614,5.86277,2445.2,2444.8,2.3259]
[1725253356894,2.8629,2445.1,2444.8,2.3259]
[1725253357592,5.72584,2445.1,2444.8,2.3259]
[1725253357995,2.8629,2445.1,2444.8,2.3259]
[1725253358902,5.72584,2445.1,2444.8,2.3259]
[1725253360127,2.8629,2445.1,2444.8,2.3259]
[1725253360340,5.72583,2445.1,2444.8,2.3259]
[1725253361029,2.8631,2444.9,2444.8,2.3259]
[1725253361197,5.7262,2444.9,2444.6,2.4884]
[1725253361388,5.72631,2444.9,2444.6,2.4884]
[1725253361606,2.8631,2444.9,2444.6,2.4884]
[1725253361792,5.72626,2444.9,2444.6,2.4884]
[1725253362104,2.8631,2444.9,2444.6,2.4884]
[1725253362496,2.863,2445.0,2444.6,2.4884]
[1725253364096,5.7259,2445.1,2444.6,2.4884]
[1725253364524,2.86293,2445.1,2444.6,2.4884]
[1725253365094,5.72587,2445.1,2444.6,2.4884]
[1725253365330,2.86293,2445.1,2444.6,2.4884]
[1725253365703,5.72589,2445.1,2444.6,2.4884]
[1725253366441,5.72586,2445.1,2444.6,2.4884]
[1725253368534,2.86293,2445.1,2444.6,2.4884]
[1725253368844,2.86293,2445.1,2444.5,10.30355]
[1725253368845,3.0,2445.2,2444.9,2.4272]
[1725253369014,3.0,2445.3,2444.9,2.4272]
[1725253376136,3.0,2445.3,2444.9,5.2903]
[1725253376333,3.0,2445.3,2445.0,2.3309]
[1725253376983,5.86265,2445.3,2445.0,2.3309]
[1725253377754,2.86277,2445.2,2445.0,2.3309]
[1725253379937,2.86286,2445.1,2444.8,2.4762]
[1725253381598,2.86299,2445.0,2444.8,2.4762]
[1725253382596,2.86299,2445.0,2444.6,2.4762]
[1725253383162,2.86315,2444.9,2444.6,2.4762]
[1725253383363,2.86333,2444.7,2444.5,7.44]
[1725253383560,2.86345,2444.6,2444.5,7.44]
[1725253384295,2.86333,2444.7,2444.5,7.44]
[1725253384856,2.86345,2444.6,2444.5,7.44]
[1725253385082,5.86345,2444.6,2444.5,7.44]
[1725253385280,6.85791901,2444.6,2444.5,7.44]
[1725253385694,6.85791901,2444.6,2444.2,2.287]
[1725253385695,2.86358,2444.5,2444.2,2.287]
[1725253385873,5.72726,2444.5,2444.2,2.287]
[1725253386888,5.72723,2444.5,2444.2,2.287]
[1725253388052,2.8637,2444.4,2444.2,2.287]
[1725253388540,2.8637,2444.4,2444.0,7.44]
[1725253388744,2.8637,2444.4,2444.0,9.8679]
[1725253389542,2.86358,2444.5,2444.0,9.8679]
[1725253389543,2.86358,2444.5,2444.0,2.4279]
[1725253391712,3.0,2444.6,2444.1,2.285]
[1725253391912,3.0,2444.5,2444.1,2.285]
[1725253392112,3.0,2444.5,2444.1,3.086338]
[1725253392357,2.86358,2444.5,2444.1,3.086338]
[1725253392928,2.86358,2444.5,2444.1,2.285]
[1725253393131,2.8638,2444.3,2444.1,2.285]
[1725253396057,2.86392,2444.2,2443.7,10.30443]
[1725253396212,2.86392,2444.2,2443.8,2.3851]
[1725253397857,5.72768,2444.3,2443.8,2.3851]
[1725253398241,2.8638,2444.3,2443.8,2.3851]
[1725253398831,2.86393,2444.2,2443.8,2.3851]
[1725253399543,2.86404,2444.1,2443.8,2.3851]
[1725253399943,5.72815,2444.1,2443.8,2.3851]
[1725253400261,3.55864601,2444.1,2443.8,2.3851]
[1725253400522,2.86427,2443.9,2443.8,2.3851]
[1725253400879,2.86404,2444.1,2443.8,2.3851]
[1725253401975,5.72818,2444.1,2443.8,2.3851]
[1725253402687,2.86434,2443.9,2443.7,7.44]
[1725253403106,5.86439,2443.8,2443.3,2.3853]
[1725253403304,3.737443,2443.7,2443.3,2.3853]
[1725253403457,2.86457,2443.7,2443.3,2.3853]
[1725253405204,3.572818,2444.0,2443.3,2.3853]
[1725253405205,6.437038,2444.0,2443.4,2.4733]
[1725253405405,2.86387,2444.3,2443.7,2.86443]
[1725253405706,2.86398,2444.2,2443.8,2.4733]
[1725253406700,3.0,2444.1,2443.8,2.4733]
[1725253408085,3.0,2444.2,2443.8,2.4733]
[1725253408285,3.0,2444.2,2443.8,5.33767]
[1725253408514,3.0,2444.2,2443.8,2.86437]
[1725253408717,3.0,2444.3,2443.9,2.4523]
[1725253410221,3.0,2444.3,2444.0,2.86415]
[1725253410553,3.0,2444.4,2444.0,2.86415]
[1725253410712,0.6291981,2444.3,2443.9,2.4523]
[1725253412189,3.4929981,2444.3,2443.9,2.4523]
[1725253412488,3.0,2444.2,2443.9,2.4523]
[1725253417642,2.86415,2444.0,2443.9,2.4523]
[1725253418714,3.736972,2444.0,2443.9,2.4523]
[1725253418935,3.736972,2444.0,2443.5,2.397]
[1725253419141,2.86415,2444.0,2443.5,2.397]
[1725253420088,2.2881,2444.0,2443.5,2.397]
[1725253420357,2.86407,2444.1,2443.5,2.397]
[1725253420358,2.86455,2443.7,2443.5,2.397]
[1725253420560,2.8644,2443.8,2443.5,2.397]
[1725253423166,8.72842,2444.0,2443.5,2.397]
[1725253423666,2.86427,2443.9,2443.5,2.397]
[1725253426303,3.737113,2443.9,2443.5,2.397]
[1725253427789,3.0,2444.0,2443.5,2.397]
[1725253428101,2.86399,2444.2,2443.5,2.397]
[1725253428102,3.0,2444.1,2443.5,2.397]
[1725253429202,3.0,2444.1,2443.8,2.382]
[1725253429430,3.42842024,2444.3,2443.9,2.382]
[1725253430510,6.29223024,2444.3,2443.9,2.382]
[1725253430808,4.08314884,2444.2,2443.9,2.382]
[1725253430989,4.03753791,2444.1,2443.9,2.382]
[1725253431861,3.0,2444.1,2443.9,2.382]
[1725253432269,6.29229024,2444.3,2443.9,2.382]
[1725253432510,2.86404,2444.1,2443.9,2.382]
[1725253432666,2.86399,2444.2,2443.9,2.382]
[1725253432865,3.0,2444.1,2443.9,2.38079272]
[1725253433906,2.86415,2444.0,2443.5,7.44]
[1725253434111,5.86429,2443.9,2443.3,2.8649]
[1725253434276,2.86456,2443.7,2443.2,7.44]
[1725253434873,2.86456,2443.7,2443.2,10.30508]
[1725253435073,5.72894,2443.8,2443.2,10.30508]
[1725253435276,2.86447,2443.8,2443.2,10.30508]
[1725253435595,6.46291465,2443.8,2443.2,10.30508]
[1725253435910,6.46291465,2443.8,2443.3,2.3114]
[1725253436611,3.59844465,2443.8,2443.3,2.3114]
[1725253436975,3.42841705,2444.1,2443.6,2.3114]
[1725253437206,3.42841705,2444.1,2443.8,2.4898]
[1725253437414,3.85628564,2444.1,2443.8,2.4898]
[1725253437707,6.72033564,2444.1,2443.8,2.4898]
[1725253439013,2.86429,2443.9,2443.7,2.4454]
[1725253439894,5.72864,2443.9,2443.7,2.4454]
[1725253440213,0.69478588,2443.8,2443.7,2.4454]
[1725253440710,3.55917588,2443.8,2443.7,2.4454]
[1725253441223,0.69478588,2443.8,2443.7,2.4454]
[1725253442374,2.86429,2443.9,2443.7,2.4454]
[1725253442566,2.86429,2443.9,2443.3,2.3678]
[1725253442771,2.86451,2443.7,2443.3,2.3678]
[1725253443375,5.72908,2443.7,2443.3,2.3678]
[1725253443571,3.85628564,2444.1,2443.3,2.3678]
[1725253443572,2.86486,2443.4,2443.3,2.3678]
[1725253443919,2.86486,2443.4,2442.7,2.86558]
[1725253443920,2.86486,2443.4,2442.9,2.3678]
[1725253444221,2.86475,2443.5,2443.1,2.3943]
[1725253444546,2.86498,2443.3,2443.1,2.3943]
[1725253447090,2.86475,2443.5,2443.1,2.3943]
[1725253447091,2.86487,2443.4,2443.1,2.3943]
[1725253448745,5.86498,2443.3,2443.1,2.3943]
[1725253449276,8.73002,2443.3,2443.1,2.3943]
[1725253449762,8.73004,2443.3,2443.1,2.3943]
[1725253450537,2.86509,2443.2,2443.1,2.3943]
[1725253451766,5.86498,2443.3,2443.1,2.3943]
[1725253451969,2.86509,2443.2,2443.1,2.3943]
[1725253453457,2.84879685,2443.2,2443.1,2.3943]
[1725253454652,5.86498,2443.3,2443.1,2.3943]
[1725253455088,2.86509,2443.2,2443.1,2.3943]
[1725253455404,5.86498,2443.3,2443.1,2.3943]
[1725253455859,3.0,2443.3,2443.1,2.3943]
[1725253456061,0.42847422,2443.5,2443.1,2.920268]
[1725253456269,5.72827,2444.1,2443.6,2.4505]
[1725253456559,3.2925931,2444.0,2443.6,2.4505]
[1725253457985,3.0,2443.9,2443.6,2.4505]
[1725253458387,3.4284331,2444.0,2443.6,2.4505]
[1725253458752,3.3784331,2444.0,2443.6,2.4505]
[1725253459110,3.0,2444.0,2443.6,2.4505]
[1725253460905,2.92649341,2444.6,2444.0,2.2618]
[1725253461062,2.86346,2444.6,2444.1,2.86402]
[1725253461251,0.572687,2444.5,2444.0,2.2618]
[1725253461695,3.436267,2444.5,2444.0,2.2618]
[1725253462602,3.0,2444.4,2444.0,2.2618]
[1725253463387,3.0,2444.4,2443.5,2.86472]
[1725253463388,3.0,2444.4,2444.2,2.3987]
[1725253463721,2.86292,2445.1,2444.5,2.2785]
[1725253463900,2.863,2445.0,2444.5,2.2785]
[1725253464102,0.572592,2444.9,2444.5,2.2785]
[1725253464303,3.435732,2444.9,2444.5,2.2785]
[1725253464595,2.86314,2444.9,2444.5,2.2785]
[1725253465374,3.0,2444.8,2444.5,2.2785]
[1725253467623,3.0,2444.8,2444.5,5.14206]
[1725253467820,2.86293,2445.1,2444.5,5.14206]
[1725253467821,3.0,2445.0,2444.5,5.14206]
[1725253468611,3.0,2445.0,2444.5,8.00555]
[1725253468800,3.0,2445.0,2444.5,8.00549]
[1725253469325,3.0,2445.0,2444.5,5.14199]
[1725253470500,3.0,2445.0,2444.5,8.00549]
[1725253470723,3.0,2445.0,2444.5,5.14199]
[1725253470917,3.0,2445.0,2444.5,8.00549]
[1725253471790,2.86245,2445.5,2444.7,2.2788]
[1725253472001,3.29056808,2445.7,2445.2,2.2732]
[1725253472285,0.42832808,2445.7,2445.2,2.2732]
[1725253472528,1.33621923,2445.7,2445.2,2.86266]
[1725253472703,1.33621923,2445.7,2445.3,2.4795]
[1725253472888,1.33621923,2445.7,2445.3,5.34209]
[1725253473077,1.33621923,2445.7,2445.3,2.4795]
[1725253473788,4.33621923,2445.7,2445.3,2.4795]
[1725253474894,7.19839923,2445.7,2445.3,2.4795]
[1725253476333,6.29050808,2445.7,2445.3,2.4795]
[1725253483534,3.42832808,2445.7,2445.3,2.4795]
[1725253483733,0.42832808,2445.7,2445.3,2.4795]
[1725253486156,3.29049808,2445.7,2445.3,2.4795]
[1725253486353,3.0,2445.6,2445.3,2.4795]
[1725253490778,3.0,2445.6,2445.4,2.4474]
[1725253491090,0.42832808,2445.7,2445.4,2.4474]
[1725253494838,0.42832808,2445.7,2445.4,5.30988]
[1725253495085,0.42832808,2445.7,2445.4,6.12713]
[1725253496256,0.42832808,2445.7,2445.4,2.4474]
[1725253500285,3.42832808,2445.7,2445.4,2.4474]
[1725253501009,6.29049808,2445.7,2445.4,2.4474]
[1725253501144,2.8625,2445.5,2445.1,2.4287]
[1725253501641,2.86253,2445.4,2445.1,2.4287]
[1725253502648,5.72515,2445.4,2445.1,2.4287]
[1725253502856,2.86253,2445.4,2445.1,2.4287]
[1725253503072,2.86233,2445.6,2445.1,2.4043]
[1725253503278,2.86233,2445.6,2445.2,2.3341]
[1725253503865,6.29052808,2445.7,2445.2,2.3341]
[1725253506453,6.29052808,2445.7,2445.2,5.19683]
[1725253506454,3.42832808,2445.7,2445.2,5.19683]
[1725253506679,3.42832808,2445.7,2445.2,2.3341]
[1725253506989,6.29049808,2445.7,2445.2,2.3341]
[1725253507406,3.42832808,2445.7,2445.2,5.19683]
[1725253507994,6.29049808,2445.7,2445.2,5.19683]
[1725253508989,3.42832808,2445.7,2445.3,2.94432425]
[1725253509197,0.42832808,2445.7,2445.4,2.4406]
[1725253509487,6.23423788,2446.5,2445.9,2.4406]
[1725253509488,5.72287,2446.4,2445.9,2.4406]
[1725253509699,0.42825194,2446.1,2445.9,2.4406]
[1725253510296,0.42825194,2446.1,2446.0,2.86181]
[1725253510500,5.72238,2446.6,2446.1,2.4406]
[1725253510656,0.42823907,2446.4,2446.1,2.4406]
[1725253511463,0.42823907,2446.4,2445.9,2.392]
[1725253511789,0.42823907,2446.4,2446.1,2.392]
[1725253512802,0.42823907,2446.4,2446.1,5.25367]
[1725253513364,0.42823907,2446.4,2446.2,2.3398]
[1725253515568,0.42823907,2446.4,2446.2,5.20135]
[1725253515791,3.0,2446.7,2446.3,2.4768]
[1725253515950,3.42823899,2446.7,2446.3,2.4768]
[1725253522900,0.42831556,2447.1,2446.9,2.4669]
[1725253523973,3.42831556,2447.1,2446.9,2.4669]
[1725253528277,0.42831556,2447.1,2446.9,2.71359]
[1725253528487,0.42831556,2447.1,2447.0,5.32754]
[1725253528875,1.21766816,2447.7,2447.0,5.32754]
[1725253529081,0.42824164,2447.5,2447.0,5.32754]
[1725253529276,3.28830164,2447.5,2447.1,0.559604]
[1725253529816,4.5059698,2447.5,2447.1,0.559604]
[1725253530013,3.0,2447.4,2447.1,0.559604]
[1725253530212,4.6459098,2447.5,2447.1,0.559604]
[1725253530377,3.42824164,2447.5,2447.3,2.4511]
[1725253531270,6.28831164,2447.5,2447.3,2.4511]
[1725253531771,0.10735896,2447.4,2447.3,2.4511]
[1725253535331,6.28831164,2447.5,2447.3,2.4511]
[1725253535677,6.28831164,2447.5,2447.3,2.69621]
[1725253535973,0.10991106,2447.4,2447.3,2.4511]
[1725253541114,3.28799439,2447.8,2447.3,2.4511]
[1725253541337,3.1100682,2447.7,2447.3,2.53281257]
[1725253541519,3.1100682,2447.7,2447.4,2.3697]
[1725253541689,3.1100682,2447.7,2447.4,5.22987]
[1725253542007,0.1100682,2447.7,2447.5,2.3697]
[1725253542194,0.42822439,2447.8,2447.5,2.45140976]
[1725253542393,0.11008606,2447.6,2447.5,2.95478968]
[1725253542599,0.42822439,2447.8,2447.5,2.95478968]
[1725253542797,0.11008606,2447.6,2447.5,2.95478968]
[1725253542994,3.28794439,2447.8,2447.5,2.3697]
[1725253542995,5.85982,2447.7,2447.5,2.3697]
[1725253543314,2.9702821,2447.6,2447.1,2.288]
[1725253543527,2.9702821,2447.6,2447.1,2.574054]
[1725253544424,2.86041,2447.2,2447.1,2.288]
[1725253544634,2.86041,2447.2,2446.3,13.58766816]
[1725253544635,2.86064,2447.0,2446.3,2.288]
[1725253544789,2.86119,2446.6,2446.3,2.5168]
[1725253544972,2.86107,2446.7,2446.3,2.288]
[1725253545327,0.11022577,2446.5,2446.3,2.288]
[1725253545473,2.86125,2446.5,2446.3,2.288]
[1725253545930,0.10984618,2446.4,2446.3,2.288]
[1725253546215,5.86123,2446.5,2446.3,2.288]
[1725253546373,0.10980387,2446.4,2446.3,2.288]
[1725253546972,0.10980387,2446.4,2445.4,7.44]
[1725253546973,0.10980387,2446.4,2445.7,2.4769]
[1725253547239,2.86178,2446.1,2445.7,2.4769]
[1725253547368,2.86194,2445.9,2445.7,2.4769]
[1725253547770,0.10849254,2445.8,2445.7,2.4769]
[1725253548202,2.86178,2446.1,2445.7,2.4769]
[1725253548508,2.86178,2446.1,2445.7,2.79899]
[1725253548912,0.10810807,2446.0,2445.7,2.79899]
[1725253551607,0.53636932,2446.0,2445.7,2.79899]
[1725253553834,0.10810807,2446.0,2445.7,2.79899]
[1725253554040,0.10810807,2446.0,2445.7,2.4769]
[1725253554041,2.86201,2445.9,2445.7,2.4769]
[1725253554213,2.86201,2445.9,2445.4,7.44]
[1725253554214,2.86198,2445.9,2445.4,9.8935]
[1725253554410,3.10744765,2445.8,2445.4,9.8935]
[1725253555095,2.86225,2445.7,2445.4,9.8935]
[1725253555322,0.10736622,2445.6,2445.4,9.8935]
[1725253556860,0.10718578,2445.5,2445.4,9.8935]
[1725253557200,3.0,2445.8,2445.4,9.8935]
[1725253557424,0.10718578,2445.5,2445.4,9.8935]
[1725253557628,3.0,2445.8,2445.4,9.8935]
[1725253557823,0.10718578,2445.5,2445.4,9.8935]
[1725253558030,3.0,2445.8,2445.4,9.8935]
[1725253558265,0.10716324,2445.5,2445.4,9.8935]
[1725253558571,5.86182,2446.0,2445.4,7.44]
[1725253558729,5.86182,2446.0,2445.5,2.3171]
[1725253559629,2.86195,2445.9,2445.5,2.3171]
[1725253559962,3.0,2445.8,2445.5,2.3171]
[1725253560188,3.0,2446.0,2445.5,2.39887509]
[1725253560357,3.0,2446.0,2445.5,2.3171]
[1725253560669,5.86191,2446.0,2445.5,2.3171]
[1725253561464,2.86195,2445.9,2445.5,2.3171]
[1725253562270,2.86212,2445.8,2445.5,2.3171]
[1725253562573,2.86235,2445.6,2445.4,7.44]
[1725253562873,2.8624,2445.5,2445.3,2.396]
[1725253564834,2.86251,2445.4,2445.0,2.4101]
[1725253565043,2.8624,2445.5,2445.0,2.4101]
[1725253565044,2.8627,2445.3,2445.0,2.4101]
[1725253565542,5.72544,2445.3,2445.0,2.4101]
[1725253565741,2.8627,2445.3,2445.0,2.4101]
[1725253566187,5.72542,2445.3,2445.0,2.4101]
[1725253566481,3.0,2445.8,2445.0,2.4101]
[1725253566677,0.10661539,2445.2,2445.0,2.4101]
[1725253566868,3.0,2445.2,2445.0,2.4101]
[1725253567256,0.10629964,2445.1,2445.0,2.4101]
[1725253569464,2.86242,2445.5,2445.0,2.4101]
[1725253569647,0.42827401,2445.7,2445.0,2.4101]
[1725253569648,0.10629914,2445.1,2445.0,2.4101]
[1725253569876,0.42827401,2445.7,2445.0,2.4101]
[1725253569877,2.86282,2445.2,2445.0,2.4101]
[1725253570405,0.10633147,2445.1,2445.0,2.4101]
[1725253571996,2.96919147,2445.1,2445.0,2.4101]
[1725253573659,0.10633147,2445.1,2445.0,2.4101]
[1725253573888,0.10633147,2445.1,2445.0,2.65111]
[1725253574214,0.10619562,2445.1,2445.0,2.4101]
[1725253578497,3.0,2445.4,2445.0,2.4101]
[1725253578708,0.10628412,2445.1,2445.0,2.4101]
[1725253578861,3.0,2445.4,2445.0,2.4101]
[1725253579065,0.10628412,2445.1,2445.0,2.4101]
[1725253579309,5.86252,2445.4,2445.0,2.4101]
[1725253579906,0.10638023,2445.3,2445.1,2.94454875]
[1725253580128,0.10638023,2445.3,2445.2,2.3314]
[1725253580485,6.29050401,2445.7,2445.2,2.3314]
[1725253580723,0.10641686,2445.3,2445.2,2.3314]
[1725253580982,0.10641686,2445.3,2445.2,2.85899487]
[1725253581206,6.29050401,2445.7,2445.2,2.85899487]
[1725253581423,0.10641686,2445.3,2445.2,2.85899487]
[1725253581727,6.29050401,2445.7,2445.2,2.85899487]
[1725253581894,0.10641686,2445.3,2445.2,2.85899487]
[1725253582100,6.29050401,2445.7,2445.2,2.85899487]